Cogmind - Beta 17 @@@ ROGUE MODE // 2026.08.01 @ 14:43:55 Player: Akl Result: Destroyed self via exploding Power Conduit Performance ------------- Evolutions (5) 2500 Regions Visited (4) 800 Robots Destroyed (21) 105 Value Destroyed (952) 952 Prototype IDs (0) 0 Alien Tech Used (0) 0 Bonus (800) 800 TOTAL SCORE: 5157 Bonus ------- Registered with UFD 300 Met Optimus in HQ 500 Cogmind --------- Core Integrity 0/1000 Matter 158/300 Energy 150/150 System Corruption 11% Temperature Cool (60) Movement Hovering (111) Ox1 Location -5/Factory Parts ------- > --- POWER (2) -------- Micro Fission Core > --- PROPULSION (4) --- Improved Gravmag System Antigrav System > --- UTILITY (9) ------ Large Storage Unit Improved Target Analyzer Improved Recalibrator > --- WEAPON (2) ------- Mass Driver > --- INVENTORY (15) --- Humpback Mining Laser Peak State ------------ > --- POWER ------------ Micro Fission Core > --- PROPULSION ------- Improved Gravmag System Antigrav System > --- UTILITY ---------- Large Storage Unit Improved Target Analyzer Improved Recalibrator > --- WEAPON ----------- Hypervelocity Coil Gun Mass Driver > --- INVENTORY -------- Humpback Mining Laser [Rating: 41] Favorites ----------- Power Ion Engine Engine Ion Engine Power Core Micro Fission Core Propulsion Wheel Treads Light Treads Leg Carbon-fiber Leg Wheel Wheel Hover Unit Antigrav System Utility Improved Terrain Scanner Device Improved Terrain Scanner Storage Small Storage Unit Processor Improved Target Analyzer Weapon EM Pulse Gun Energy Gun EM Pulse Gun Ballistic Gun Hypervelocity Coil Gun Ballistic Cannon Mass Driver Special Weapon Mining Laser Build | -11 -10 -10 -7 -5 ------- Run | Yrd Mat Sub Scr Fac Slots Evolved 10 | . . . . 10 Power 1 | . . . . 1 Propulsion 2 | . . . . 2 Utility 7 | . . . . 7 Weapon . | . . . . . Parts Attached 34 | 6 . 2 2 24 Power 4 | 1 . . . 3 Engine 3 | 1 . . . 2 Core 1 | . . . . 1 Reactor . | . . . . . Propulsion 11 | 2 . . 1 8 Treads 2 | 1 . . 1 . Leg 2 | . . . . 2 Wheel 4 | 1 . . . 3 Hover 3 | . . . . 3 Flight . | . . . . . Utility 7 | 1 . 1 . 5 Device 3 | . . 1 . 2 Storage 3 | 1 . . . 2 Processor 1 | . . . . 1 Hackware . | . . . . . Protection . | . . . . . Artifact . | . . . . . Weapon 12 | 2 . 1 1 8 Energy Gun 4 | 2 . . 1 1 Energy Cannon . | . . . . . Ballistic Gun 5 | . . . . 5 Ballistic Cannon 2 | . . . . 2 Launcher . | . . . . . Special Weapon 1 | . . 1 . . Impact Weapon . | . . . . . Slashing Weapon . | . . . . . Piercing Weapon . | . . . . . Special Melee Weapon . | . . . . . Unidentified Prototypes . | . . . . . Parts Lost 20 | . . . . 20 Power 3 | . . . . 3 Propulsion 8 | . . . . 8 Utility 2 | . . . . 2 Weapon 7 | . . . . 7 Highest Loss Streak 8 | . . . . 8 To Critical Strikes . | . . . . . Average Backups 6 | 1 5 6 5 7 Power . | . 1 1 1 . Propulsion . | . 1 1 1 . Utility 1 | . 2 1 1 1 Weapon 2 | . 1 1 2 4 Tool/Special . | . . . . . Unused Backups 3 | . . . 3 . Power 1 | . . . 1 . Propulsion . | . . . . . Utility . | . . . . . Weapon 2 | . . . 2 . Tool/Special . | . . . . . Average Slot Usage (%) 82 | . 85 86 100 41 Engine 10 | . 14 14 14 2 Treads 10 | . 14 14 14 2 Wheel 11 | . 14 14 14 6 Device 10 | . . 1 14 6 Storage 11 | . 14 14 14 5 Energy Gun 20 | . 28 26 28 1 Ballistic Gun 1 | . . . . 6 Peak Build Rating 41 | 6 6 10 13 41 Average Rating 13 | 4 6 7 10 25 On Entrance 7 | . 6 6 10 13 Avg Prop Armor Cover (%) 11 | 11 11 11 11 11 Naked Turns . | . . . . . Heaviest Build 42 | 14 14 15 16 42 Greatest Support 36 | 20 10 10 18 36 Greatest Overweight (x) 13 | 1 1 1 1 13 Average Overweight (x) 1 | . 1 1 . 1 Largest Inventory Capacity 35 | 8 8 8 8 35 Average Capacity 9 | 7 8 8 8 14 Most Carried 12 | 5 5 8 8 12 Average Carried 6 | 1 5 6 6 8 Final Capacity 15 | 8 8 8 8 15 Final Carried 8 | 5 5 7 8 3 Class Distribution -------------------- 100% | Mutant Dominant Class ---------------- Mutant | -10/Materials Mutant | -10/Subcaves Mutant | -7/Scraptown Mutant | -5/Factory Resources | -11 -10 -10 -7 -5 ----------- Run | Yrd Mat Sub Scr Fac Matter Collected 877 | 260 . 10 20 587 Remotely . | . . . . . Salvage Created 1204 | 108 . 98 . 998 Parts 54 | 5 . 6 . 43 Haulers Intercepted . | . . . . . Recyclers Shooed 5 | . . . . 5 Parts Field Recycled . | . . . . . Retrieved Matter . | . . . . . Parts Self-Destructed 3 | . . 3 . . Prevented 3 | . . 3 . . Parts Restored . | . . . . . Kills | -11 -10 -10 -7 -5 ------- Run | Yrd Mat Sub Scr Fac Combat Hostiles Destroyed 14 | . . 2 . 12 Guns 10 | . . 2 . 8 Cannons 1 | . . . . 1 AOE 3 | . . . . 3 Classes Destroyed 8 | 2 . 2 . 4 Worker 1 | . . . . 1 Builder 1 | . . . . 1 Tunneler 1 | 1 . . . . Recycler 3 | 1 . . . 2 Mechanic 1 | . . . . 1 Grunt 10 | . . 1 . 9 Sentry 2 | . . 1 . 1 Programmer 2 | . . . . 2 Best Kill Streak 6 | 2 . 2 . 6 Combat Bots Only 5 | . . 2 . 5 Max Kills in Single Turn 4 | 1 . 1 . 4 Gunslinging . | . . . . . Exploded 3 | . . . . 3 Melee . | . . . . . Uniques/NPCs Destroyed . | . . . . . Combat | -11 -10 -10 -7 -5 -------- Run | Yrd Mat Sub Scr Fac Hostile Shots Fired 213 | . . 14 . 199 Missed 43 | . . 3 . 40 Hits 170 | . . 11 . 159 Projectile 170 | . . 11 . 159 Critical Strikes 11 | . . 2 . 9 Damage Taken 3501 | . . 167 16 3318 Core 1036 | . . 31 1 1004 Absorbed by Shields . | . . . . . Core Remaining (%) 93 | 100 . . 87 . Volleys Fired 91 | 5 . 7 1 78 Largest 2 | 2 . 2 2 2 Hottest 109 | 80 . 100 85 109 Shots Fired 145 | 10 . 12 2 121 Gun 125 | 10 . 10 2 103 Cannon 18 | . . . . 18 Launcher . | . . . . . Special 2 | . . 2 . . Kinetic 97 | . . . . 97 Thermal 26 | . . 2 . 24 Explosive . | . . . . . Electromagnetic 22 | 10 . 10 2 . Robot Hit Streak 18 | 8 . 7 3 18 Robot Miss Streak 5 | 1 . 1 1 5 Penetration Max 3 | . . . . 3 Secondary Targets . | . . . . . Shots Hit Robots 91 | 9 . 8 1 73 Core Hits 47 | 3 . 3 2 39 Critical Kills 6 | . . . . 6 Critical Parts Destroyed 11 | . . . . 11 Critical Strikes 17 | . . . . 17 Destroy 17 | . . . . 17 Melee Attacks . | . . . . . Impact . | . . . . . Slashing . | . . . . . Piercing . | . . . . . Sneak Attacks . | . . . . . Combat Hostiles . | . . . . . Follow-up Attacks . | . . . . . Damage Inflicted 2797 | 148 . 97 15 2537 Guns 1304 | 121 . 97 12 1074 Cannons 311 | . . . . 311 Explosions 1148 | 27 . . . 1121 Melee . | . . . . . Ramming 34 | . . . 3 31 Kinetic 1022 | . . . . 1022 Thermal 546 | 27 . . . 519 Explosive 965 | . . . . 965 Electromagnetic 230 | 121 . 97 12 . Impact . | . . . . . Slashing . | . . . . . Piercing . | . . . . . Highest Corruption 11 | . . . . 11 Average Corruption 8 | . . . . 8 Corruption Purged . | . . . . . Corruption Blocked . | . . . . . Effects 10 | . . . . 10 Message Errors 2 | . . . . 2 Matter Fused 3 | . . . . 3 Heat Flow Errors 1 | . . . . 1 Energy Discharges 1 | . . . . 1 Parts Rejected 1 | . . . . 1 Data Loss (minor) 1 | . . . . 1 Misdirections 1 | . . . . 1 Overload Shots . | . . . . . Overflow Damage 65 | . . . . 65 Projectiles . | . . . . . Explosions 65 | . . . . 65 Melee . | . . . . . Knockbacks 6 | . . . . 6 Impact . | . . . . . Kinetic 6 | . . . . 6 Secondary . | . . . . . Self-Inflicted Damage 112 | . . . 1 111 Shots 2 | . . . . 2 Rammed 4 | . . . 1 3 Targets Rammed 4 | . . . 1 3 Kicked . | . . . . . Crushed . | . . . . . Highest Temperature 277 | 54 . 13 24 277 Average Temperature 71 | 22 . 13 13 82 Received Heat Transfer 883 | . . 96 . 787 Siege Activations . | . . . . . Martial Activations . | . . . . . Shielding Activations . | . . . . . Robots Disrupted . | . . . . . Combat Hostiles . | . . . . . Robots Corrupted . | . . . . . Combat Hostiles . | . . . . . Parts Fried . | . . . . . Impact Corruptions . | . . . . . Robots Melted . | . . . . . Combat Hostiles . | . . . . . Parts Melted 2 | . . . . 2 Heat Transferred 705 | 50 . . . 655 Parts Sabotaged . | . . . . . Parts Stolen . | . . . . . Parts Stripped . | . . . . . Power Chain Reactions 1 | 1 . . . . Alert | -11 -10 -10 -7 -5 ------- Run | Yrd Mat Sub Scr Fac Maximum Alert Level 1 | . . . . 1 Low Security (%) 64 | 100 100 . . 58 Level 1 35 | . . . . 41 Level 2 . | . . . . . Level 3 . | . . . . . Level 4 . | . . . . . Level 5 . | . . . . . High Security . | . . . . . Max Security . | . . . . . Peak Influence 290 | 5 2 . . 290 Initial . | . . . . . Average 108 | 1 . . . 128 Influence Increases 864 | 10 2 40 . 812 Destroy 0b10 Robot/C 280 | . . 40 . 240 Destroy 0b10 Robot/NC 35 | 10 . . . 25 Destroy Leader 40 | . . . . 40 Successful Hack 20 | . 2 . . 18 Disable Machine 225 | . . . . 225 Destroy Structure 144 | . . . . 144 Lose Combat Pursuer 120 | . . . . 120 Influence Decreases 447 | 10 2 40 . 395 Time Decay 267 | 10 2 40 . 215 Lost Part 180 | . . . . 180 Squads Dispatched 3 | . . . . 3 Investigation 1 | . . . . 1 Extermination 1 | . . . . 1 Reinforcement 1 | . . . . 1 Assault . | . . . . . Garrison . | . . . . . Intercept . | . . . . . Searches Triggered . | . . . . . Construction Impeded 1 | . . . . 1 Haulers Reinforced . | . . . . . Active Scanning Responses . | . . . . . Cargo Convoy Interrupts . | . . . . . Stealth | -11 -10 -10 -7 -5 --------- Run | Yrd Mat Sub Scr Fac Distress Signals 2 | . . . . 2 Communications Jammed . | . . . . . Distress Signals . | . . . . . Times Spotted 31 | . . 2 3 26 Peak Tracking Total 10 | . . 2 3 10 Tactical Retreats 4 | . . . 1 3 Traps | -11 -10 -10 -7 -5 ------- Run | Yrd Mat Sub Scr Fac Traps Triggered 1 | . . . . 1 Indirectly . | . . . . . Trap Hack Attempts . | . . . . . Triggered . | . . . . . Disarmed . | . . . . . Reprogrammed . | . . . . . Reused . | . . . . . Traps Extracted . | . . . . . Installed . | . . . . . Triggered . | . . . . . Machines | -11 -10 -10 -7 -5 ---------- Run | Yrd Mat Sub Scr Fac Machines Disabled 15 | . . . . 15 Max in Single Turn 9 | . . . . 9 Machines Repaired . | . . . . . Machines Dismantled . | . . . . . Machines Sabotaged . | . . . . . Overloaded Fab Kills . | . . . . . Hacking | -11 -10 -10 -7 -5 --------- Run | Yrd Mat Sub Scr Fac Machines Accessed 10 | . 1 . 7 2 Terminals 3 | . 1 . . 2 Fabricators . | . . . . . Repair Stations . | . . . . . Recycling Units . | . . . . . Scanalyzers . | . . . . . Garrison Access . | . . . . . Total Hacks 62 | . 4 . 53 5 Successful 58 | . 3 . 53 2 Failed 4 | . 1 . . 3 Catastrophic . | . . . . . Database Lockouts . | . . . . . Manual 4 | . . . . 4 Terminals 9 | . 4 . . 5 Fabricators . | . . . . . Repair Stations . | . . . . . Recycling Units . | . . . . . Scanalyzers . | . . . . . Garrison Access . | . . . . . Terminal Hacks 56 | . 3 . 53 . Record 50 | . 3 . 47 . Robot Analysis 6 | . . . 6 . Fabricator Hacks . | . . . . . Repair Station Hacks . | . . . . . Recycling Unit Hacks . | . . . . . Scanalyzer . | . . . . . Garrison Access Hacks . | . . . . . Unauthorized Hacks 2 | . . . . 2 Terminals 2 | . . . . 2 Botnet 2 | . . . . 2 Fabricators . | . . . . . Repair Stations . | . . . . . Recycling Units . | . . . . . Scanalyzers . | . . . . . Garrison Access . | . . . . . Data Cores Recovered . | . . . . . Used . | . . . . . Hacking Detections 2 | . 1 . . 1 Full Trace Events . | . . . . . Feedback Events . | . . . . . Feedback Blocked . | . . . . . Robot Schematics Acquired . | . . . . . Robots Built . | . . . . . Authchips . | . . . . . Time . | . . . . . Total Robot Build Rating . | . . . . . Part Schematics Acquired . | . . . . . Parts Built . | . . . . . Authchips . | . . . . . Time . | . . . . . Total Part Build Rating . | . . . . . Part Studies Acquired . | . . . . . Parts Repaired . | . . . . . Time . | . . . . . Parts Recycled . | . . . . . Recycled Matter . | . . . . . Retrieved Matter . | . . . . . Retrieved Components . | . . . . . Parts Scanalyzed . | . . . . . Part Schematics Acquired . | . . . . . Parts Damaged . | . . . . . Bothacking | -11 -10 -10 -7 -5 ------------ Run | Yrd Mat Sub Scr Fac Used RIF Installer . | . . . . . Robots Hacked . | . . . . . Non-combat . | . . . . . Combat . | . . . . . Robot Hacks Applied . | . . . . . Relay Couplers Released . | . . . . . Fabnet Peak Effective % . | . . . . . Robots Rewired . | . . . . . Allies Hacked . | . . . . . Hacks Repelled . | . . . . . Allies | -11 -10 -10 -7 -5 -------- Run | Yrd Mat Sub Scr Fac Total Allies . | . . . . . Largest Group . | . . . . . Highest-Rated Group . | . . . . . Highest-Rated Ally . | . . . . . Initial UFD Resources 37 | . . . . 37 Total Orders . | . . . . . Ally Attacks . | . . . . . Total Damage . | . . . . . Kills . | . . . . . Allies Corrupted . | . . . . . Allies Melted . | . . . . . Intel | -11 -10 -10 -7 -5 ------- Run | Yrd Mat Sub Scr Fac Active Infowar (turns) 2124 | . . 31 1723 370 Terrain 2110 | . . 31 1723 356 Seismic 367 | . . . . 367 Robot Analysis Total 6 | . . . 6 . Derelict Logs Recovered 2 | . . 2 . . Drone Launches . | . . . . . Drone Recoveries . | . . . . . Exploration | -11 -10 -10 -7 -5 ------------- Run | Yrd Mat Sub Scr Fac Turns Passed 2848 | 65 76 223 1723 761 Spaces Moved 2288 | 39 10 116 1742 381 Core 20 | 4 . . . 16 Treads 6 | 1 . . 2 3 Legs 2 | . . . . 2 Wheels 2188 | 34 10 116 1740 288 Hover 72 | . . . . 72 Flight . | . . . . . Fastest Speed 50 | 50 95 95 95 80 Average Speed 99 | 88 95 95 95 121 Slowest Speed 700 | 160 95 95 140 700 Overloaded Moves . | . . . . . Propulsion Burnouts . | . . . . . Robots Hopped . | . . . . . Potential Cave-ins . | . . . . . Cave-ins Triggered 1 | . . . . 1 Exploration Rate (%) 26 | 4 3 16 93 14 Regions Visited 4 Branch Regions 2 Pre-discovered Areas 3 | . . 2 1 . Known Exits Taken . | . . . . . Unknown Exits Taken 4 | 1 1 1 1 . Scrap Searched 2 | . . . 2 . Spaces Dug . | . . . . . Terrain Destroyed 80 | 6 . . . 74 Melee . | . . . . . Projectile 8 | . . . . 8 AOE 69 | 6 . . . 63 Terrain Rammed . | . . . . . Walls Destroyed . | . . . . . Machines Disabled . | . . . . . Actions | -11 -10 -10 -7 -5 --------- Run | Yrd Mat Sub Scr Fac Total 2713 | 56 76 211 1810 560 Wait 263 | 2 67 83 53 58 Move 2284 | 38 9 115 1741 381 Hop . | . . . . . Pick Up 21 | 5 . 3 4 9 Fast Attach 16 | 6 . . . 10 Attach 17 | . . 1 . 16 Detach 2 | . . . . 2 Swap 4 | . . 2 2 . Drop 9 | . . . 6 3 Fire 91 | 5 . 7 1 78 Melee . | . . . . . Ram 4 | . . . 1 3 Kick . | . . . . . Crush . | . . . . . Escape Stasis . | . . . . . Rewire 2 | . . . 2 . Trap . | . . . . . Miscellaneous . | . . . . . Route ------- -11/Scrapyard -10/Materials -10/Subcaves -7/Scraptown (discovered 2 exits: *Fac x2) -5/Factory History --------- Turn | Location | Event 11 | -11/Scrapyard | Discovered new exit (range 16) 66 | -11/Scrapyard | Entered Materials 125 | -10/Materials | Discovered new exit (range 6) 142 | -10/Materials | Entered Subcaves 143 | -10/Subcaves | Approached by a straggling Scientist 144 | -10/Subcaves | Learned location of Zion (-6) 214 | -10/Subcaves | Shifting Twisted Machinery released Mak. Power Source 214 | -10/Subcaves | Shifting Twisted Machinery released Barrage Gun 297 | -10/Subcaves | Shifting Twisted Machinery released Flamer 329 | -10/Subcaves | Build established: Mutant 349 | -10/Subcaves | Scientist uncovered a shortcut to Scraptown 365 | -10/Subcaves | Entered Scraptown 641 | -7/Scraptown | Heard Great Nut preacher, LISTEN AND RECITE! 738 | -7/Scraptown | Discovered new exit (range 3) 795 | -7/Scraptown | Visited Assassins FH 816 | -7/Scraptown | Visited Shadow of the Wyrm 841 | -7/Scraptown | Visited Cave Peace 891 | -7/Scraptown | Learned location of Extension (-5) 1139 | -7/Scraptown | Visited The Evicted 1167 | -7/Scraptown | Visited IN-MT5's Study 1303 | -7/Scraptown | Visited UFD Registry 1317 | -7/Scraptown | Registered with UFD as "Cryobank" 1355 | -7/Scraptown | Visited Science Testing Area 1374 | -7/Scraptown | Visited Analyses Database 1398 | -7/Scraptown | Visited Junk Repository 1426 | -7/Scraptown | Visited Abandonware Association 1443 | -7/Scraptown | Learned abandonware demo "SHUTEYE.EXE" 1443 | -7/Scraptown | Learned abandonware demo "REVENGE.EXE" 1494 | -7/Scraptown | Visited Supply Room 1512 | -7/Scraptown | Visited Chapter 10 1711 | -7/Scraptown | Visited Botcube Research 1732 | -7/Scraptown | Visited Curators Association 1833 | -7/Scraptown | Discovered new exit (range 3) 1948 | -7/Scraptown | Met Optimus 1948 | -7/Scraptown | Accepted into 0bPrime 2061 | -7/Scraptown | Civil war broke out across Scraptown 2088 | -7/Scraptown | Entered Factory 2088 | -5/Factory | Evolved 10 slots: Power x1, Propulsion x2, Utility x7 2114 | -5/Factory | Lost 6 allies 2496 | -5/Factory | Lost 8 parts (2p2n2u2w) 2511 | -5/Factory | Crushed by falling debris 2558 | -5/Factory | Core integrity fell below 50% 2647 | -5/Factory | Core integrity fell below 20% 2682 | -5/Factory | System corruption reached 10% 2683 | -5/Factory | Lost 5 parts (3n2w) 2849 | -5/Factory | Destroyed self via exploding Power Conduit Last Messages --------------- 02832_ HV Slug penetrates Door. 02835_ HV Slug penetrates Power Conduit. 02838_ HV Slug penetrates Wall. 02839_ ALERT: Construction progress impeded, dispatching reinforcements to local area. 02841_ HV Slug penetrates Door. 02844_ HV Slug penetrates Power Conduit. 02847_ K-01 Serf cleans the Power Conduit. 02848_ 6XNEDQ/JT S5W8YJ3XOD 02849_ Power Conduit collapses. 02849_ Power Conduit explodes. 02849_ Destroyed Unknown Engine. 02849_ Power Conduit explodes. 02849_ Wheel melted. 02849_ M-13 Machinist destroyed. 02849_ Power Conduit explodes. 02849_ Nuclear Reactor explodes. 02849_ Power Conduit explodes. 02849_ Hyp. Coil Gun destroyed. 02849_ Destroyed Hyp. Coil Gun. Map ----- +----------------------------------------------------+ | ##########?#???????# #?###########???? | | #???? ??????????# # ???? | | ##### #????" ??????????# # ""?????? | | ????# #????" """? ?????# + " " ""????? | | ????# #?? "T """" ?#???# # "Y" ] """???? | | ????+ #???"" """"??????# # """ ??????? | | ????# #???"" ??????# #########??????? | | ????# #???? ???????# #??#????# | | ????# #???? ?? ????# #???##??# | | ????# #????? =/????????# """" #?#?#???# | | ????# #????? =/????????#! """" ##??????# | | ????# #?????? =?????????# """" #???????# | | ????# #?????? ?????????#= #???????# | | ????# ########+#+######### ######### | | ????+ | | ????########## | | ?????????????# u " | | ??############ T | | ?? # " | | # # ########## | | # """"""""" # #?????# | | # # u #???#?# | | # # k #?????# | | # ]! + ##??#?# | | # ]! # #?????# | | # + @ #?????# | | # """"""""" ####;;;;; ;######### #?????# | | ??? #??# = #??# #?????# | | ???""Y""" #??### !!! #??# #?????# | | ????""""" #????# !! #??# #???#?#### | | ??????#### ###????# !! #??# #??##????? | | ?????????##???????# * #??# #????????? | | ??????????????????################# ##??#???#? | | ?????????????????????# # T#????#??? | | ?????????????????????#" # #???????? | | ?????????????????????#" # ##???????? | | ?????????????????????#" # #????????? | | ?????????????????????#T """ """ # #????????? | | ?????????????????????#" """ """ + #????????? | | ?????????????????????#" """ """ # #????????? | | ?????????????????????#" # #????????? | | ?????????????????????# """ """ # #????????? | | ?????????#???????????# """ """ # #??????#?? | | ?????????????#???????# """ """ # #????#???? | | ???????????????????#?# # ########## | | ????????????????#?#??############## # | | ?????#####??#?????????????????????# # | | ??#?? ! ] #?????????????????????# # """" """ | | ??# #??????????????######## # """" """ | | ??# """ """ #???#??????"???# # """" """ | +----------------------------------------------------+ Best States ------------- Heat Dissipation 40 Energy Generation 18 Energy Capacity 400 Matter Stores 300 Matter Capacity 300 Sight Range 16 Terrain Scan Range 16 Terrain Scan Density 10 Evasion (%) 44 Target Analysis 6 Recoil Reduction 1 Item Schematics ----------------- None Robot Schematics ------------------ None Fabricated ------------ Nothing Repaired ---------- Nothing Studied --------- None Alien Tech Used ----------------- None Achievements -------------- Nice Directions, Buddy Uncivil War Challenges ------------ None Game ------ Seed AluminumPotentialScreen Manual? 0 Play Time 00:29:04 Cumulative 17.1 hours Start 2026.08.01 @ 14:13:34 End 2026.08.01 @ 14:43:55 Sessions 1 Manual Loads 0 Difficulty Rogue Special Mode None Game No. 33 Rogue 33 Adventurer 0 Explorer 0 Win Type - Total 0 Types 0/0/0/0/0/0/0/0/0/0 Lore% 18 Gallery% 19 Achievement% 30 Wizard Run 0 Options --------- Layout 1 ASCII 0 Keyboard 0 Movement Numpad Keybinds 0 Fullscreen 1 Font 16/SmallcapsGlow Map View 50x35 Zoom Use 0% Tactical HUD 1 Map Filters NONE Filters NONE Steam 1 RUN: ef88f4b0-e23f-4b91-839f-0e24c71c0fc5